Workbook

Sheet Key
A1: 1. ITT 6-year Bonds | E1: ytm: | F1: 0.033 | G1: cc | H1: 6-year T-Note cc ytm: | J1: 0.016
B2: Coupon: | C2: 0.05
B3: Time-line of bond's cash flows:
B4: Time (Years): | C4: 0 | D4: 0.5 | E4: 1 | F4: 1.5 | G4: 2 | H4: 2.5 | I4: 3 | J4: 3.5 | K4: 4 | L4: 4.5 | M4: 5 | N4: 5.5 | O4: 6
B5: Promised CF: | D5: =50*$C$2 -> 2.5 | E5: =50*$C$2 -> 2.5 | F5: 2.5 | G5: 2.5 | H5: 2.5 | I5: 2.5 | J5: 2.5 | K5: 2.5 | L5: 2.5 | M5: 2.5 | N5: 2.5 | O5: =100*(1+$C$2/2) -> 102.5
B6: df: | D6: =EXP(-D4*$F$1) -> 0.9836353794 | E6: =EXP(-E4*$F$1) -> 0.9675385596 | F6: 0.9517051581 | G6: 0.9361308643 | H6: 0.9208114379 | I6: 0.905742708 | J6: 0.8909205722 | K6: 0.8763409951 | L6: 0.8620000072 | M6: 0.8478937041 | N6: 0.8340182453 | O6: 0.8203698531
B7: PV: | D7: =D5*D6 -> 2.459088448 | E7: =E5*E6 -> 2.418846399 | F7: 2.379262895 | G7: 2.340327161 | H7: 2.302028595 | I7: 2.26435677 | J7: 2.227301431 | K7: 2.190852488 | L7: 2.155000018 | M7: 2.11973426 | N7: 2.085045613 | O7: 84.08790995
C8: =SUM(D7:O7) -> 109.029754
B11: Credit Spread: | C11: =F1-J1 -> 0.017 | D11: 170 basis points
B13: Hazard rate: | C13: =0.5*C11 -> 0.0085 | D13: 85 basis points. Our rule of thumb is that 1/2 of the credit spread is compensation for expected loss (and therefore is the hazard rate), and the remaining half is the risk premium.
D14: '==> Risk premium: | F14: =C11-C13 -> 0.0085
B15: 6-year survival probability: | D15: =EXP(-6*C13) -> 0.9502786705
B16: So the probability that the bond will be worth 0 at any time prior to maturity is: | H16: =1-D15 -> 0.04972132947
B18: Expected return on the bond is computed by adding the risk premium to the term-matched Treasury yield: | J18: =J1+F14 -> 0.0245 | K18: (As long as everything is expressed on a cc basis.)
B19: Alternately, we can compute the expected return by subtracting the hazard rate from the bond's ytm: | J19: =F1-C13 -> 0.0245 | K19: (As long as everything is expressed on a cc basis.)
B20: This is important. It shows the rate of return that an investor in the bond expects to earn if she hold the bond to maturity.
B21: It also is the pre-tax cost of debt to the borrower. The reason for this is that the borrower doesn't pay in the event of default. And those cases are reflected by the hazard rate.
B22: The expected return does not include the hazard rate. (This is the reason that the expected return on a natural disaster catastrophe bond is the riskfree rate.)
A25: 2. L3Harris | B25: 3 | C25: year bond, annual coupon payments | F25: 0.06 | G25: coupon rate | H25: cc ytm on US Treasury: | J25: 0.03
C26: Hazard rate: | D26: 0.008
B29: Time-line of bond's cash flows:
B30: Time (Years): | C30: 0 | D30: 1 | E30: 2 | F30: 3
B31: Promised CF: | D31: =100*$F$25 -> 6 | E31: =100*$F$25 -> 6 | F31: =100*(1+$F$25) -> 106
B32: Surv Prob: | D32: =EXP(-D30*$D$26) -> 0.9920319148 | E32: =EXP(-E30*$D$26) -> 0.9841273201 | F32: 0.9762857098
B33: E(CF): | D33: =D31*D32 -> 5.952191489 | E33: =E31*E32 -> 5.90476392 | F33: 103.4862852
A35: There are 2 natural ways to compute the bond's value. The first is to discount the bond's promised cash flows at its ytm.
B36: We find the bond's cc ytm by adding the Treasury rate to the hazard rate plus the risk premium.
B37: We know that the risk premium is equal to the hazard rate using our rule of thumb. Therefore we have: | J37: Bond's cc ytm
J38: Treasury | K38: =J25 -> 0.03 | L38: Compensation for time
J39: + hazard rate | K39: =D26 -> 0.008 | L39: Compensation for expected loss
J40: + Risk Premium | K40: =D26 -> 0.008 | L40: Compensation for fact that losses are correlated with the state of the economy.
J41: = ytm | K41: =K38+K39+K40 -> 0.046
B42: df(@bond's ytm): | D42: =EXP(-D30*$K$41) -> 0.9550419622 | E42: =EXP(-E30*$K$41) -> 0.9121051495 | F42: 0.8710986917 | L42: The expected return on the bond is:
B43: PV: | D43: =D31*D42 -> 5.730251773 | E43: =E31*E42 -> 5.472630897 | F43: 92.33646133 | L43: the bond's ytm minus its hazard rate: | O43: =K41-K39 -> 0.038
C44: =SUM(D43:F43) -> 103.539344 | L44: - or - Treasury yield + Risk premium: | O44: =K38+K40 -> 0.038
A47: ----- OR ----
B49: Discount the bond's expected cash flows at the cc Treasury ytm + the bond's risk premium:
B50: df(@UST ytm+ RP): | D50: =EXP(-D30*($K$38+$K$40)) -> 0.9627129409 | E50: =EXP(-E30*($K$38+$K$40)) -> 0.9268162066 | F50: 0.8922579559
B51: PV: | D51: =D33*D50 -> 5.730251773 | E51: =E33*E50 -> 5.472630897 | F51: 92.33646133
C52: =SUM(D51:F51) -> 103.539344
A57: 3. Weyerhauser
B58: 2-year 7.5% notes, selling for par. | E58: Treasury yield: | G58: 0.04 | H58: cc
B60: Obtain cc ytm: | C60: Semi-annually compounded ytm: | F60: 0.075 | H60: =LN((1+F60/2)^2) -> 0.07362794625
H61: Verify: | I61: =EXP(H60) -> 1.07640625
I62: =(1+F60/2)^2 -> 1.07640625
B64: Credit Spread: | C64: =H60-G58 -> 0.03362794625
B65: haz rate: | C65: =0.5*C64 -> 0.01681397312
B66: risk prem: | C66: =C64-C65 -> 0.01681397312
B67: Discussion: We are not told anything about the timing of the bond's cash flows so by convention, coupon payments are paid every 6 months. This is not something that we can assume away.
B68: Time Line:
B69: Time (Yrs): | D69: 0.5 | E69: 1 | F69: 5 | G69: 2
B70: Promised Cash Flow: | D70: =50*$F$60 -> 3.75 | E70: =50*$F$60 -> 3.75 | F70: 3.75 | G70: =100*(1+$F$60/2) -> 103.75
B71: Survival Probability: | D71: =EXP(-$C$65*D69) -> 0.9916282533 | E71: =EXP(-$C$65*E69) -> 0.9833265928 | F71: 0.9193670217 | G71: 0.9669311881
B72: Expected (Cash Flow): | D72: =D70*D71 -> 3.71860595 | E72: =E70*E71 -> 3.687474723 | F72: 3.447626331 | G72: 100.3191108
B74: The expected return on a corporate bond equals the ytm minus the hazard rate: | H74: =H60-C65 -> 0.05681397312
B75: . -- Alternately, it is the Treasury ytm + the risk premium: | H75: =G58+C66 -> 0.05681397312
